bitfinex/quotes_SOLUSD_20230702
["timestamp","ask_amount","ask_price","bid_price","bid_amount"]
[1688310796869,26.17129144,19.199,19.184,78.814]
[1688310797071,20.0,19.198,19.185,55.0]
[1688310797468,20.0,19.198,19.188,22.043]
[1688310797672,20.0,19.199,19.188,22.043]
[1688310798876,20.0,19.199,19.187,22.045]
[1688310801483,20.0,19.199,19.185,55.0]
[1688310803082,20.0,19.199,19.187,22.046]
[1688310805478,55.0,19.198,19.184,22.049]
[1688310805664,20.0,19.197,19.184,22.049]
[1688310805869,55.0,19.196,19.184,22.049]
[1688310812678,65.61843981,19.2,19.184,125.624]
[1688310812884,20.0,19.199,19.185,55.0]
[1688310813086,20.0,19.199,19.189,22.043]
[1688310813871,20.0,19.199,19.187,22.045]
[1688310814488,55.0,19.198,19.187,22.045]
[1688310814679,20.0,19.197,19.187,22.045]
[1688310821477,20.0,19.199,19.187,22.045]
[1688310821682,20.0,19.199,19.19,12.83]
[1688310821882,49.09770395,19.206,19.19,12.83]
[1688310821883,27.23191557,19.206,19.192,22.039]
[1688310822079,27.23191557,19.206,19.193,55.0]
[1688310822385,27.231916,19.206,19.196,22.035]
[1688310830388,12.92,19.21,19.196,22.035]
[1688310830588,75.0,19.209,19.196,22.035]
[1688310831305,131.735,19.209,19.196,22.035]
[1688310836391,76.735,19.209,19.196,22.035]
[1688310841808,76.735,19.209,19.193,55.0]
[1688310842013,55.0,19.208,19.195,22.036]
[1688310842220,20.0,19.207,19.195,22.036]
[1688310843115,20.0,19.207,19.194,22.038]
[1688310845427,55.0,19.206,19.193,22.039]
[1688310850522,12.92,19.2,19.19,10.83719922]
[1688310850716,22.035,19.196,19.189,22.042]
[1688310854720,22.035,19.196,19.183,250.4337]
[1688310855021,22.035,19.196,19.188,22.044]
[1688310855414,22.035,19.196,19.18,69.695]
[1688310855616,55.0,19.195,19.181,22.052]
[1688310857021,69.645,19.2,19.181,22.052]
[1688310857221,101.66312987,19.199,19.181,22.052]
[1688310857414,75.0,19.199,19.181,22.052]
[1688310863511,95.6611185,19.2,19.182,55.0]
[1688310863717,95.6611185,19.2,19.187,182.357]
[1688310863718,20.0,19.199,19.187,182.357]
[1688310864122,42.033,19.199,19.187,182.357]
[1688310867316,42.033,19.199,19.19,12.83]
[1688310867516,42.033,19.199,19.192,22.039]
[1688310869031,42.033,19.199,19.191,22.041]
[1688310869421,42.033,19.199,19.19,22.042]
[1688310869621,42.033,19.199,19.188,22.043]
[1688310874430,42.033,19.199,19.183,98.9785]
[1688310874633,182.308,19.193,19.178,56.782]
[1688310874833,22.044,19.189,19.181,22.051]
[1688310875542,56.738,19.194,19.181,22.051]
[1688310876031,56.738,19.194,19.185,22.047]
[1688310879043,115.5387,19.197,19.185,22.047]
[1688310879243,20.0,19.196,19.185,22.047]
[1688310883656,20.0,19.198,19.186,55.0]
[1688310883857,20.0,19.198,19.189,22.043]
[1688310887737,20.0,19.198,19.19,12.83]
[1688310887958,20.0,19.199,19.191,22.04]
[1688310888342,20.0,19.205,19.191,22.04]
[1688310888849,22.04,19.202,19.19,34.872]
[1688310889038,20.0,19.201,19.19,34.872]
[1688310890061,12.92,19.21,19.191,55.0]
[1688310890246,20.0,19.209,19.193,22.038]
[1688310890552,39.30242279,19.21,19.193,22.038]
[1688310890853,20.856279,19.209,19.197,22.034]
[1688310892345,20.0,19.208,19.197,22.034]
[1688310893349,20.0,19.208,19.192,96.3187]
[1688310893350,12.92,19.22,19.202,22.028]
[1688310893856,20.0,19.219,19.202,22.028]
[1688310895761,20.0,19.219,19.203,55.0]
[1688310895942,20.0,19.219,19.206,22.024]
[1688310896553,20.0,19.219,19.207,55.0]
[1688310896767,20.0,19.219,19.21,22.019]
[1688310896952,12.92,19.23,19.21,22.019]
[1688310897260,20.0,19.226,19.21,22.019]
[1688310897447,20.0,19.229,19.21,22.019]
[1688310898358,20.0,19.229,19.21,34.849]
[1688310898763,58.910722,19.229,19.211,55.0]
[1688310898944,58.910722,19.229,19.216,22.012]
[1688310899147,20.0,19.229,19.217,55.0]
[1688310899349,20.0,19.229,19.219,22.008]
[1688310899551,20.0,19.229,19.218,22.01]
[1688310900051,20.0,19.231,19.216,22.012]
[1688310900268,22.004,19.224,19.214,22.014]
[1688310900971,22.004,19.224,19.213,22.016]
[1688310902772,22.004,19.224,19.214,55.0]
[1688310902958,22.004,19.224,19.217,22.011]
[1688310904267,56.635,19.229,19.218,55.0]
[1688310904465,26.20673359,19.232,19.221,22.006]
[1688310904667,26.20673359,19.232,19.222,55.0]
[1688310904968,55.0,19.238,19.223,22.004]
[1688310905556,20.0,19.236,19.223,22.004]
[1688310906761,26.24613891,19.237,19.224,55.0]
[1688310906970,20.0,19.236,19.227,21.999]
[1688310907366,20.0,19.243,19.227,21.999]
[1688310907874,103.96892745,19.25,19.227,21.999]
[1688310907875,95.2434,19.244,19.227,21.999]
[1688310908176,20.0,19.243,19.227,21.999]
[1688310908361,20.0,19.243,19.228,21.998]
[1688310909166,5.0,19.246,19.23,64.4]
[1688310909352,5.0,19.246,19.235,21.99]
[1688310909761,5.0,19.246,19.241,21.983]
[1688310910571,5.0,19.246,19.243,21.981]
[1688310911253,5.0,19.246,19.244,55.0]
[1688310911459,5.0,19.246,19.245,21.979]
[1688310911978,5.0,19.246,19.24,12.86]
[1688310912366,5.0,19.246,19.242,21.982]
[1688310912878,5.0,19.246,19.237,56.608]
[1688310913262,5.0,19.246,19.239,21.985]
[1688310914879,5.0,19.246,19.24,55.0]
[1688310915076,5.0,19.246,19.241,21.983]
[1688310916869,5.0,19.246,19.242,55.0]
[1688310917062,5.0,19.246,19.243,78.572]
[1688310917466,5.0,19.246,19.244,55.0]
[1688310917678,5.0,19.246,19.245,21.979]
[1688310917981,5.0,19.246,19.245,76.979]
[1688310918476,5.0,19.246,19.245,21.979]
[1688310919180,5.0,19.246,19.24,69.549]
[1688310919371,5.0,19.246,19.24,56.599]
[1688310920175,5.0,19.246,19.243,21.981]
[1688310920584,5.0,19.246,19.234,56.616]
[1688310920768,5.0,19.246,19.238,21.987]
[1688310921971,55.0,19.245,19.237,21.988]
[1688310922780,5.0,19.246,19.237,21.988]
[1688310927880,5.0,19.246,19.231,91.7207]
[1688310928075,5.0,19.246,19.237,21.988]
[1688310929977,5.0,19.246,19.238,55.0]
[1688310930185,5.0,19.246,19.24,21.984]
[1688310932476,5.0,19.246,19.241,55.0]
[1688310932676,5.0,19.246,19.242,21.982]
[1688310935378,5.0,19.246,19.243,55.0]
[1688310935594,5.0,19.246,19.244,21.98]
[1688310935794,26.15567411,19.262,19.245,55.0]
[1688310936092,20.0,19.261,19.25,21.973]
[1688310936299,20.0,19.263,19.25,21.973]
[1688310937187,20.0,19.269,19.25,21.973]
[1688310937391,15.0,19.269,19.25,21.973]
[1688310938576,55.0,19.268,19.25,21.973]
[1688310939803,20.0,19.267,19.25,21.973]
[1688310940099,55.0,19.266,19.25,21.973]
[1688310940294,119.5745,19.265,19.25,21.973]
[1688310940496,55.0,19.264,19.242,56.593]
[1688310940681,20.0,19.263,19.246,21.978]
[1688310940999,55.0,19.262,19.246,21.978]
[1688310941201,20.0,19.261,19.246,21.978]
[1688310941393,55.0,19.26,19.246,21.978]
[1688310941597,20.0,19.259,19.246,21.978]
[1688310943493,20.0,19.26,19.247,55.0]
[1688310943694,20.0,19.262,19.25,21.973]
[1688310943895,64.45,19.27,19.25,21.973]
[1688310944203,93.9862,19.269,19.255,21.967]
[1688310944387,109.9862,19.269,19.255,21.967]
[1688310945800,55.0,19.268,19.255,21.967]
[1688310946227,89.9862,19.269,19.255,21.967]
[1688310946982,89.9862,19.269,19.256,55.0]
[1688310947182,12.85,19.27,19.256,21.966]
[1688310947405,20.0,19.269,19.256,21.966]
[1688310947989,20.0,19.269,19.257,55.0]
[1688310948190,20.0,19.269,19.26,21.961]
[1688310948596,20.0,19.272,19.26,21.961]
[1688310949695,55.0,19.271,19.26,21.961]
[1688310949882,20.0,19.27,19.26,21.961]
[1688310950082,55.0,19.269,19.26,21.961]
[1688310950284,20.0,19.268,19.255,56.554]
[1688310951085,20.0,19.268,19.259,21.962]
[1688310952605,12.9,19.27,19.255,21.968]
[1688310952808,75.0,19.269,19.255,21.968]
[1688310953194,71.0,19.269,19.255,21.968]
[1688310953393,167.9166,19.269,19.255,21.968]
[1688310955004,167.9166,19.269,19.254,21.969]
[1688310955204,167.9166,19.269,19.252,21.97]
[1688310955412,167.9166,19.269,19.25,21.973]
[1688310955998,125.083,19.267,19.25,21.973]
[1688310956198,75.0,19.266,19.25,21.973]
[1688310956405,21.961,19.262,19.25,21.973]
[1688310956606,20.0,19.261,19.25,21.973]
[1688310957315,20.0,19.262,19.25,21.973]
[1688310960012,55.0,19.261,19.25,21.973]
[1688310960313,20.0,19.26,19.25,21.973]
[1688310960493,20.0,19.26,19.25,78.544]
[1688310960815,26.17833234,19.267,19.25,78.544]
[1688310961003,26.17833234,19.267,19.25,91.334]
[1688310961315,396.8,19.279,19.25,91.334]
[1688310961503,91.8857,19.278,19.251,92.5866]
[1688310961709,119.0253857,19.278,19.259,21.963]
[1688310962004,211.6119857,19.278,19.259,21.963]
[1688310962517,20.0,19.277,19.259,21.963]
[1688310962701,211.6119857,19.278,19.259,21.963]
[1688310963200,125.065,19.27,19.259,21.963]
[1688310964193,125.065,19.27,19.258,21.964]
[1688310964598,21.956,19.266,19.258,21.964]
[1688310969625,21.956,19.266,19.259,55.0]
[1688310969918,99.4428,19.282,19.261,21.961]
[1688310970105,25.76205305,19.275,19.264,21.957]
[1688310970306,99.4428,19.282,19.264,21.957]
[1688310970506,20.0,19.281,19.264,21.957]
[1688310971113,119.4428,19.281,19.264,21.957]
[1688310971314,55.0,19.28,19.264,21.957]
[1688310971511,20.0,19.279,19.264,21.957]
[1688310971715,27.11219631,19.295,19.264,177.657]
[1688310971926,572.88175397,19.3,19.264,177.657]
[1688310971927,98.8997,19.297,19.27,12.78]
[1688310972110,27.11336899,19.29,19.279,21.94]
[1688310972308,103.836253,19.295,19.28,55.0]
[1688310972512,12.79,19.3,19.284,21.934]
[1688310973018,25.90972884,19.302,19.284,21.934]
[1688310973203,25.909728,19.3,19.284,21.934]
[1688310973520,21.921,19.297,19.288,21.93]
[1688310973821,21.921,19.297,19.286,21.932]
[1688310975020,21.921,19.297,19.287,55.0]
[1688310975322,21.921,19.297,19.288,21.929]
[1688310975518,21.921,19.297,19.289,55.0]
[1688310975723,21.921,19.297,19.291,21.926]
[1688310975931,83.50917422,19.305,19.292,55.0]
[1688310976102,56.412,19.305,19.295,21.921]
[1688310976817,21.914,19.303,19.295,21.921]
[1688310978419,21.914,19.303,19.293,21.924]
[1688310982220,21.914,19.303,19.293,21.394114]
[1688310983014,21.914,19.303,19.293,21.924]
[1688310984228,56.413,19.304,19.293,21.924]
[1688310984229,21.912,19.304,19.293,21.924]
[1688310984518,21.914,19.303,19.297,21.919]
[1688310984725,21.914,19.303,19.299,21.917]
[1688310985127,21.914,19.303,19.294,111.44]
[1688310985308,21.914,19.303,19.291,93.341]
[1688310985509,21.914,19.303,19.294,21.923]
[1688310985710,21.914,19.303,19.297,21.92]
[1688310985925,21.914,19.303,19.296,21.92]
[1688310986228,21.914,19.303,19.297,21.92]
[1688310986627,21.914,19.303,19.292,56.447]
[1688310986830,26.35710262,19.321,19.298,21.918]
[1688310987020,20.0,19.318,19.298,21.918]
[1688310987831,20.0,19.318,19.29,12.85]
[1688310988027,55.0,19.317,19.29,12.85]
[1688310988329,20.0,19.316,19.294,21.923]
[1688310988524,55.0,19.315,19.294,21.923]
[1688310988717,20.0,19.314,19.294,21.923]
[1688310988915,55.0,19.313,19.294,21.923]
[1688310989223,20.0,19.312,19.294,21.923]
[1688310989935,20.0,19.315,19.295,55.0]
[1688310990226,20.0,19.315,19.29,115.852]
[1688310990428,20.0,19.315,19.295,21.922]
[1688310991130,55.0,19.314,19.295,21.922]
[1688310991427,20.0,19.313,19.295,21.922]
[1688310992033,20.0,19.315,19.295,21.922]
[1688310994029,55.0,19.314,19.295,21.922]
[1688310994334,20.0,19.313,19.295,21.922]
[1688310994540,55.0,19.312,19.295,21.922]
[1688310994833,20.0,19.311,19.295,21.922]
[1688310995240,20.0,19.311,19.296,55.0]
[1688310995431,20.0,19.315,19.298,21.918]
[1688310995634,55.0,19.314,19.298,21.918]
[1688310995829,20.0,19.313,19.298,21.918]
[1688310996138,20.0,19.315,19.298,21.918]
[1688310996640,20.0,19.315,19.299,55.0]
[1688310996830,21.908,19.308,19.3,21.916]
[1688310997418,20.0,19.307,19.299,55.0]
[1688310997634,21.911,19.305,19.299,55.0]
[1688310999240,21.911,19.305,19.298,21.918]
[1688310999534,21.911,19.305,19.296,117.3203]
[1688310999836,21.911,19.305,19.296,21.921]
[1688311001931,21.911,19.305,19.298,21.918]
[1688311002333,21.911,19.305,19.291,258.7939]
[1688311002639,21.911,19.305,19.292,55.0]
[1688311003033,21.911,19.305,19.295,21.921]
[1688311004446,21.911,19.305,19.296,55.0]
[1688311004740,21.911,19.305,19.298,21.918]
[1688311004938,21.911,19.305,19.299,55.0]
[1688311005325,21.911,19.305,19.299,76.918]
[1688311006941,25.66,19.33,19.299,76.918]
[1688311007131,91.4321,19.323,19.3,12.78]
[1688311007439,91.4321,19.323,19.301,56.42]
[1688311007642,91.4321,19.323,19.301,111.42]
[1688311008243,91.4321,19.323,19.305,21.911]
[1688311008433,91.4321,19.323,19.307,21.909]
[1688311009640,91.4321,19.323,19.306,76.909]
[1688311009841,20.0,19.322,19.306,76.909]
[1688311010948,20.0,19.326,19.306,21.909]
[1688311011147,55.0,19.325,19.307,55.0]
[1688311011345,20.0,19.324,19.307,55.0]
[1688311011553,55.0,19.323,19.304,21.911]
[1688311011754,20.0,19.322,19.304,21.911]
[1688311011953,55.0,19.321,19.304,21.911]
[1688311012155,20.0,19.32,19.304,21.911]
[1688311013939,20.0,19.32,19.302,21.913]
[1688311014252,55.0,19.319,19.302,21.913]
[1688311014637,95.5846,19.318,19.301,21.915]
[1688311014840,55.0,19.317,19.301,21.915]
[1688311016058,95.5846,19.318,19.301,21.915]
[1688311016554,32.73,19.32,19.301,21.915]
[1688311017067,32.73,19.32,19.302,55.0]
[1688311017359,32.73,19.32,19.306,21.91]
[1688311017542,55.0,19.319,19.306,21.91]
[1688311018052,32.73,19.32,19.306,21.91]
[1688311018258,93.4884,19.322,19.308,310.7]
[1688311018458,93.4884,19.322,19.307,155.7]
[1688311018459,12.78,19.35,19.312,181.18]
[1688311018644,78.208,19.333,19.313,55.0]
[1688311018955,21.88,19.333,19.319,78.264]
[1688311019149,21.88,19.333,19.319,20.71637634]
[1688311019541,21.88,19.333,19.32,55.0]
[1688311019743,21.88,19.333,19.32,21.893]
[1688311020445,21.88,19.333,19.32,21.894]
[1688311020643,21.88,19.333,19.32,124.74]
[1688311020951,21.88,19.333,19.32,34.674]
[1688311021146,25.47836117,19.349,19.32,34.674]
[1688311021348,21.877,19.335,19.326,78.235]
[1688311021552,21.877,19.335,19.326,21.887]
[1688311021856,21.877,19.335,19.317,102.862]
[1688311022169,21.877,19.335,19.323,21.889]
[1688311025551,21.877,19.335,19.316,102.862]
[1688311025552,55.0,19.334,19.321,21.892]
[1688311027663,12.64,19.33,19.313,30.0]
[1688311027959,20.0,19.329,19.313,21.901]
[1688311028264,20.0,19.329,19.311,21.903]
[1688311028265,75.0,19.329,19.311,21.903]
[1688311028570,100.4,19.329,19.311,21.903]
[1688311028951,99.6694,19.328,19.311,21.903]
[1688311029263,55.0,19.327,19.311,21.903]
[1688311029682,12.64,19.32,19.307,21.909]
[1688311029966,20.0,19.319,19.308,21.907]
[1688311030151,12.64,19.32,19.308,21.907]
[1688311030348,55.0,19.328,19.308,21.907]
[1688311030552,78.254,19.322,19.308,21.907]
[1688311031462,21.897,19.318,19.308,21.907]
[1688311032463,21.895,19.319,19.308,21.907]
[1688311032967,56.354,19.325,19.308,124.817]
[1688311033169,21.891,19.323,19.308,124.817]
[1688311033750,21.891,19.323,19.309,55.0]
[1688311033954,21.891,19.323,19.313,78.288]
[1688311034363,21.891,19.323,19.313,21.902]
[1688311034866,21.891,19.323,19.312,21.903]
[1688311035070,21.891,19.323,19.311,21.904]
[1688311035457,55.0,19.322,19.311,21.904]
[1688311035770,78.265,19.319,19.311,21.904]
[1688311038762,78.265,19.319,19.31,21.905]
[1688311038967,55.0,19.318,19.308,21.907]
[1688311039475,55.0,19.319,19.308,21.907]
[1688311040362,55.0,19.319,19.307,21.909]
[1688311040958,55.0,19.319,19.305,21.91]
[1688311041164,55.0,19.319,19.303,21.913]
[1688311041365,21.9,19.315,19.295,56.437]
[1688311041571,55.0,19.314,19.295,56.437]
[1688311041759,55.0,19.314,19.292,30.0]
[1688311041760,78.307,19.309,19.297,21.919]
[1688311042073,55.0,19.308,19.297,21.919]
[1688311042259,21.911,19.305,19.292,86.446]
[1688311042463,55.0,19.304,19.292,56.446]
[1688311042666,55.0,19.304,19.291,21.926]
[1688311042886,20.0,19.303,19.291,21.926]
[1688311043166,55.0,19.302,19.291,21.926]
[1688311043361,20.0,19.301,19.291,21.926]
[1688311043757,55.0,19.3,19.287,21.931]
[1688311043958,20.0,19.299,19.282,56.475]
[1688311044165,55.0,19.298,19.282,56.475]
[1688311044576,55.0,19.298,19.283,21.935]
[1688311044872,55.0,19.298,19.283,21.936]
[1688311045374,110.0,19.298,19.281,21.937]
[1688311047161,110.0,19.298,19.281,78.417]
[1688311048063,55.0,19.298,19.281,78.417]
[1688311048259,27.09730842,19.304,19.281,78.417]
[1688311048458,21.921,19.297,19.282,55.0]
[1688311048664,49.01030842,19.304,19.29,12.71]
[1688311048864,21.913,19.304,19.294,78.364]
[1688311050277,21.913,19.304,19.294,21.923]
[1688311057388,91.028,19.31,19.289,103.01]
[1688311057389,21.917,19.3,19.292,21.925]
[1688311058068,21.919,19.298,19.292,21.925]
[1688311058263,21.914,19.303,19.292,21.925]
[1688311060071,43.52693393,19.324,19.293,55.0]
[1688311060380,159.256,19.315,19.299,181.3]
[1688311060566,21.903,19.312,19.299,181.3]
[1688311071279,21.903,19.312,19.299,78.343]
[1688311071487,12.76,19.31,19.299,21.917]
[1688311071791,78.314,19.307,19.298,21.919]
[1688311071984,55.0,19.306,19.296,21.92]
[1688311072179,21.913,19.303,19.296,21.92]
[1688311072386,55.0,19.302,19.293,21.924]
[1688311072589,55.0,19.306,19.293,21.924]
[1688311073283,55.0,19.306,19.292,21.925]
[1688311073694,111.451,19.306,19.292,21.925]
[1688311075202,20.0,19.305,19.288,21.93]
[1688311075500,12.76,19.3,19.279,103.063]
[1688311075691,20.0,19.299,19.281,56.478]
[1688311075891,21.924,19.294,19.281,78.416]
[1688311077386,92.5478,19.3,19.281,78.416]
[1688311077583,109.0577,19.31,19.29,78.38]
[1688311077783,20.0,19.309,19.29,78.38]
[1688311078283,20.0,19.309,19.291,96.9852]
[1688311078491,20.0,19.319,19.296,21.921]
[1688311078697,96.2977,19.309,19.296,21.921]
[1688311078899,20.0,19.308,19.296,21.921]
[1688311080284,96.2977,19.309,19.296,21.921]
[1688311080995,55.0,19.308,19.296,21.921]
[1688311081207,55.0,19.308,19.294,21.922]
[1688311081898,55.0,19.308,19.294,21.923]
[1688311082198,192.8369,19.309,19.294,78.365]
[1688311085007,96.2977,19.309,19.294,78.365]
[1688311085199,3.50911,19.318,19.294,78.365]
[1688311085403,78.297,19.311,19.294,78.365]
[1688311085606,21.904,19.311,19.294,78.365]
[1688311085819,21.904,19.311,19.295,55.0]
[1688311085995,21.904,19.311,19.299,181.296]
[1688311087703,21.904,19.312,19.299,181.296]
[1688311091325,21.904,19.312,19.299,78.342]
[1688311091618,21.908,19.308,19.299,21.917]
[1688311093616,56.43,19.315,19.299,124.875]
[1688311094022,56.38,19.316,19.299,124.875]
[1688311094610,91.1954,19.318,19.306,21.91]
[1688311094823,20.0,19.317,19.306,21.91]
[1688311095119,55.0,19.316,19.306,21.91]
[1688311099808,55.0,19.316,19.303,21.912]
[1688311100109,55.0,19.316,19.301,21.914]
[1688311100509,27.07697849,19.315,19.301,21.914]
[1688311100713,55.0,19.314,19.301,21.914]
[1688311101106,78.292,19.312,19.301,21.914]
[1688311101426,75.0,19.311,19.299,21.917]
[1688311101601,78.311,19.308,19.298,21.919]
[1688311101809,75.0,19.307,19.298,21.919]
[1688311102123,21.912,19.305,19.297,21.92]
[1688311103631,21.915,19.301,19.289,56.455]
[1688311104005,21.92,19.297,19.293,21.924]
[1688311106226,21.92,19.297,19.289,56.455]
[1688311106413,21.92,19.297,19.29,21.928]
[1688311108926,55.0,19.3,19.29,21.928]
[1688311109126,55.0,19.305,19.29,21.928]
[1688311109507,90.4671,19.306,19.29,21.928]
[1688311111624,55.0,19.305,19.29,21.928]
[1688311114123,82.08852028,19.305,19.29,21.928]
[1688311114619,82.08852028,19.305,19.29,34.688]
[1688311116527,82.08852028,19.305,19.29,21.928]
[1688311117026,55.0,19.305,19.29,21.928]
[1688311123224,20.0,19.304,19.29,21.928]
[1688311123413,55.0,19.303,19.29,21.928]
[1688311123613,21.915,19.301,19.289,21.929]
[1688311123829,87.8,19.3,19.289,21.929]
[1688311124025,87.8,19.3,19.285,56.467]
[1688311125330,21.92,19.297,19.284,21.934]
[1688311125516,55.0,19.296,19.271,97.3492]
[1688311125829,55.0,19.296,19.279,125.001]
[1688311126215,55.0,19.296,19.279,21.94]
[1688311126216,12.8,19.29,19.279,21.94]
[1688311126415,20.0,19.289,19.279,21.94]
[1688311126618,55.0,19.288,19.274,21.945]
[1688311126811,20.0,19.287,19.273,30.0]
[1688311127036,55.0,19.286,19.273,51.947]
[1688311127328,55.0,19.286,19.273,21.947]
[1688311133033,46.11220012,19.287,19.273,78.45]
[1688311133335,20.0,19.287,19.273,78.45]
[1688311133533,20.0,19.287,19.273,21.947]
[1688311133730,12.83,19.28,19.259,159.71]
[1688311133919,20.0,19.279,19.268,21.952]
[1688311134937,21.943,19.277,19.268,21.952]
[1688311135343,20.0,19.279,19.267,21.953]
[1688311135525,21.946,19.275,19.267,21.953]
[1688311136346,21.946,19.275,19.266,21.955]
[1688311136848,21.949,19.272,19.266,21.955]
[1688311137031,21.951,19.27,19.266,21.955]
[1688311137225,21.951,19.27,19.26,56.539]
[1688311137743,21.951,19.27,19.265,21.956]
[1688311138040,21.951,19.27,19.258,103.174]
[1688311138538,21.95,19.271,19.265,21.956]
[1688311142451,21.95,19.271,19.265,21.955]
[1688311144733,21.949,19.272,19.265,21.955]
[1688311145344,20.780766,19.279,19.265,21.955]
[1688311145647,20.0,19.278,19.265,21.955]
[1688311146339,20.0,19.28,19.265,21.955]
[1688311147046,55.0,19.279,19.265,21.955]
[1688311147228,20.0,19.278,19.265,21.955]
[1688311147427,20.0,19.28,19.265,21.955]
[1688311147629,55.0,19.279,19.265,21.955]
[1688311147942,20.0,19.278,19.265,21.955]
[1688311148654,55.0,19.277,19.265,21.955]
[1688311149943,20.0,19.278,19.265,21.955]
[1688311150145,20.0,19.28,19.265,21.955]
[1688311150356,55.0,19.279,19.265,21.955]
[1688311150655,20.0,19.278,19.264,21.956]
[1688311150944,55.0,19.277,19.264,21.956]
[1688311152344,20.0,19.276,19.256,96.0749]
[1688311152551,55.0,19.275,19.256,96.0749]
[1688311152736,55.0,19.275,19.253,56.561]
[1688311152737,20.0,19.274,19.253,56.561]
[1688311152938,55.0,19.273,19.253,56.561]
[1688311153141,20.0,19.272,19.253,56.561]
[1688311153354,55.0,19.271,19.253,56.561]
[1688311153549,20.0,19.27,19.253,56.561]
[1688311153939,55.0,19.269,19.253,56.561]
[1688311154158,20.0,19.268,19.256,21.966]
[1688311154358,55.0,19.267,19.256,21.966]
[1688311154940,110.0,19.267,19.256,21.966]
[1688311155259,20.0,19.266,19.256,21.966]
[1688311155439,55.0,19.265,19.256,21.966]
[1688311156373,63.73403135,19.265,19.25,21.972]
[1688311156738,63.73403135,19.265,19.24,12.75]
[1688311156739,8.73403135,19.264,19.24,12.75]
[1688311156948,28.73403135,19.264,19.246,21.977]
[1688311157257,55.0,19.263,19.246,21.977]
[1688311157447,55.0,19.263,19.245,21.979]